Workbook

Sheet Guests
A1: Year | B1: Who Was Invited | C1: Country | D1: Number of times invited | E1: Multiple Guests | H1: Invited Reckoner
A2: 1950 | B2: President Sukarno | C2: Indonesia | D2: =IF(C2="","",COUNTIF($C$2:C2,C2)) -> 1 | E2: =COUNTIF($A$2:A2,A2) -> 1 | G2: 1 | H2: Invited once
A3: 1951 | B3: King Tribhuvan Bir Bikram Shah | C3: Nepal | D3: =IF(C3="","",COUNTIF($C$2:C3,C3)) -> 1 | E3: =COUNTIF($A$2:A3,A3) -> 1 | G3: 2 | H3: Invited twice
A4: 1952 | B4: - | D4: =IF(C4="","",COUNTIF($C$2:C4,C4)) ->  | E4: =COUNTIF($A$2:A4,A4) -> 1 | G4: 3 | H4: Invited thrice
A5: 1953 | B5: - | D5: =IF(C5="","",COUNTIF($C$2:C5,C5)) ->  | E5: =COUNTIF($A$2:A5,A5) -> 1 | G5: 4 | H5: Invited four times
A6: 1954 | B6: King Jigme Dorji Wangchuck | C6: Bhutan | D6: =IF(C6="","",COUNTIF($C$2:C6,C6)) -> 1 | E6: =COUNTIF($A$2:A6,A6) -> 1 | G6: 5 | H6: Invited five times
A7: 1955 | B7: Governor General Malik Ghulam Muhammad | C7: Pakistan | D7: =IF(C7="","",COUNTIF($C$2:C7,C7)) -> 1 | E7: =COUNTIF($A$2:A7,A7) -> 1
A8: 1956 | B8: - | D8: =IF(C8="","",COUNTIF($C$2:C8,C8)) ->  | E8: =COUNTIF($A$2:A8,A8) -> 1
A9: 1957 | B9: - | D9: =IF(C9="","",COUNTIF($C$2:C9,C9)) ->  | E9: =COUNTIF($A$2:A9,A9) -> 1
A10: 1958 | B10: Marshall Ye Jianying | C10: China | D10: =IF(C10="","",COUNTIF($C$2:C10,C10)) -> 1 | E10: =COUNTIF($A$2:A10,A10) -> 1
A11: 1959 | B11: - | D11: =IF(C11="","",COUNTIF($C$2:C11,C11)) ->  | E11: =COUNTIF($A$2:A11,A11) -> 1
A12: 1960 | B12: Chairman Kliment Voroshilov | C12: Soviet Union | D12: =IF(C12="","",COUNTIF($C$2:C12,C12)) -> 1 | E12: =COUNTIF($A$2:A12,A12) -> 1
A13: 1961 | B13: Queen Elizabeth II | C13: United Kingdom | D13: =IF(C13="","",COUNTIF($C$2:C13,C13)) -> 1 | E13: =COUNTIF($A$2:A13,A13) -> 1
A14: 1962 | B14: - | D14: =IF(C14="","",COUNTIF($C$2:C14,C14)) ->  | E14: =COUNTIF($A$2:A14,A14) -> 1
A15: 1963 | B15: King Norodom Sihanouk | C15: Cambodia | D15: =IF(C15="","",COUNTIF($C$2:C15,C15)) -> 1 | E15: =COUNTIF($A$2:A15,A15) -> 1
A16: 1964 | B16: - | D16: =IF(C16="","",COUNTIF($C$2:C16,C16)) ->  | E16: =COUNTIF($A$2:A16,A16) -> 1
A17: 1965 | B17: Food and Agriculture Minister Rana Abdul Hamid | C17: Pakistan | D17: =IF(C17="","",COUNTIF($C$2:C17,C17)) -> 2 | E17: =COUNTIF($A$2:A17,A17) -> 1
A18: 1966 | B18: - | D18: =IF(C18="","",COUNTIF($C$2:C18,C18)) ->  | E18: =COUNTIF($A$2:A18,A18) -> 1
A19: 1967 | B19: - | D19: =IF(C19="","",COUNTIF($C$2:C19,C19)) ->  | E19: =COUNTIF($A$2:A19,A19) -> 1
A20: 1968 | B20: Chairman Alexei Kosygin | C20: Soviet Union | D20: =IF(C20="","",COUNTIF($C$2:C20,C20)) -> 2 | E20: =COUNTIF($A$2:A20,A20) -> 1
A21: 1968 | B21: President Josip Broz Tito | C21: Yugoslavia | D21: =IF(C21="","",COUNTIF($C$2:C21,C21)) -> 1 | E21: =COUNTIF($A$2:A21,A21) -> 2
A22: 1969 | B22: Prime Minister Todor Zhivkov | C22: Bulgaria | D22: =IF(C22="","",COUNTIF($C$2:C22,C22)) -> 1 | E22: =COUNTIF($A$2:A22,A22) -> 1
A23: 1970 | B23: - | D23: =IF(C23="","",COUNTIF($C$2:C23,C23)) ->  | E23: =COUNTIF($A$2:A23,A23) -> 1
A24: 1971 | B24: President Julius Nyerere | C24: Tanzania | D24: =IF(C24="","",COUNTIF($C$2:C24,C24)) -> 1 | E24: =COUNTIF($A$2:A24,A24) -> 1
A25: 1972 | B25: Prime Minister Seewoosagur Ramgoolam | C25: Mauritius | D25: =IF(C25="","",COUNTIF($C$2:C25,C25)) -> 1 | E25: =COUNTIF($A$2:A25,A25) -> 1
A26: 1973 | B26: President Mobutu Sese Seko | C26: Zaire | D26: =IF(C26="","",COUNTIF($C$2:C26,C26)) -> 1 | E26: =COUNTIF($A$2:A26,A26) -> 1
A27: 1974 | B27: President Josip Broz Tito | C27: Yugoslavia | D27: =IF(C27="","",COUNTIF($C$2:C27,C27)) -> 2 | E27: =COUNTIF($A$2:A27,A27) -> 1
A28: 1974 | B28: Prime Minister Sirimavo Bandaranaike | C28: Sri Lanka | D28: =IF(C28="","",COUNTIF($C$2:C28,C28)) -> 1 | E28: =COUNTIF($A$2:A28,A28) -> 2
A29: 1975 | B29: President Kenneth Kaunda | C29: Zambia | D29: =IF(C29="","",COUNTIF($C$2:C29,C29)) -> 1 | E29: =COUNTIF($A$2:A29,A29) -> 1
A30: 1976 | B30: Prime Minister Jacques Chirac | C30: France | D30: =IF(C30="","",COUNTIF($C$2:C30,C30)) -> 1 | E30: =COUNTIF($A$2:A30,A30) -> 1
A31: 1977 | B31: First Secretary Edward Gierek | C31: Poland | D31: =IF(C31="","",COUNTIF($C$2:C31,C31)) -> 1 | E31: =COUNTIF($A$2:A31,A31) -> 1
A32: 1978 | B32: President Patrick Hillery | C32: Ireland | D32: =IF(C32="","",COUNTIF($C$2:C32,C32)) -> 1 | E32: =COUNTIF($A$2:A32,A32) -> 1
A33: 1979 | B33: Prime Minister Malcolm Fraser | C33: Australia | D33: =IF(C33="","",COUNTIF($C$2:C33,C33)) -> 1 | E33: =COUNTIF($A$2:A33,A33) -> 1
A34: 1980 | B34: President Valéry Giscard d'Estaing | C34: France | D34: =IF(C34="","",COUNTIF($C$2:C34,C34)) -> 2 | E34: =COUNTIF($A$2:A34,A34) -> 1
A35: 1981 | B35: President Jose Lopez Portillo | C35: Mexico | D35: =IF(C35="","",COUNTIF($C$2:C35,C35)) -> 1 | E35: =COUNTIF($A$2:A35,A35) -> 1
A36: 1982 | B36: King Juan Carlos I | C36: Spain | D36: =IF(C36="","",COUNTIF($C$2:C36,C36)) -> 1 | E36: =COUNTIF($A$2:A36,A36) -> 1
A37: 1983 | B37: President Shehu Shagari | C37: Nigeria | D37: =IF(C37="","",COUNTIF($C$2:C37,C37)) -> 1 | E37: =COUNTIF($A$2:A37,A37) -> 1
A38: 1984 | B38: King Jigme Singye Wangchuck | C38: Bhutan | D38: =IF(C38="","",COUNTIF($C$2:C38,C38)) -> 2 | E38: =COUNTIF($A$2:A38,A38) -> 1
A39: 1985 | B39: President Raúl Alfonsín | C39: Argentina | D39: =IF(C39="","",COUNTIF($C$2:C39,C39)) -> 1 | E39: =COUNTIF($A$2:A39,A39) -> 1
A40: 1986 | B40: Prime Minister Andreas Papandreou | C40: Greece | D40: =IF(C40="","",COUNTIF($C$2:C40,C40)) -> 1 | E40: =COUNTIF($A$2:A40,A40) -> 1
A41: 1987 | B41: President Alan Garcia | C41: Peru | D41: =IF(C41="","",COUNTIF($C$2:C41,C41)) -> 1 | E41: =COUNTIF($A$2:A41,A41) -> 1
A42: 1988 | B42: President Junius Jayewardene | C42: Sri Lanka | D42: =IF(C42="","",COUNTIF($C$2:C42,C42)) -> 2 | E42: =COUNTIF($A$2:A42,A42) -> 1
A43: 1989 | B43: General Secretary Nguyen Van Linh | C43: Vietnam | D43: =IF(C43="","",COUNTIF($C$2:C43,C43)) -> 1 | E43: =COUNTIF($A$2:A43,A43) -> 1
A44: 1990 | B44: Prime Minister Anerood Jugnauth | C44: Mauritius | D44: =IF(C44="","",COUNTIF($C$2:C44,C44)) -> 2 | E44: =COUNTIF($A$2:A44,A44) -> 1
A45: 1991 | B45: President Maumoon Abdul Gayoom | C45: Maldives | D45: =IF(C45="","",COUNTIF($C$2:C45,C45)) -> 1 | E45: =COUNTIF($A$2:A45,A45) -> 1
A46: 1992 | B46: President Mário Soares | C46: Portugal | D46: =IF(C46="","",COUNTIF($C$2:C46,C46)) -> 1 | E46: =COUNTIF($A$2:A46,A46) -> 1
A47: 1993 | B47: Prime Minister John Major | C47: United Kingdom | D47: =IF(C47="","",COUNTIF($C$2:C47,C47)) -> 2 | E47: =COUNTIF($A$2:A47,A47) -> 1
A48: 1994 | B48: Prime Minister Goh Chok Tong | C48: Singapore | D48: =IF(C48="","",COUNTIF($C$2:C48,C48)) -> 1 | E48: =COUNTIF($A$2:A48,A48) -> 1
A49: 1995 | B49: President Nelson Mandela | C49: South Africa | D49: =IF(C49="","",COUNTIF($C$2:C49,C49)) -> 1 | E49: =COUNTIF($A$2:A49,A49) -> 1
A50: 1996 | B50: President Fernando Henrique Cardoso | C50: Brazil | D50: =IF(C50="","",COUNTIF($C$2:C50,C50)) -> 1 | E50: =COUNTIF($A$2:A50,A50) -> 1
A51: 1997 | B51: Prime Minister Basdeo Panday | C51: Trinidad and Tobago | D51: =IF(C51="","",COUNTIF($C$2:C51,C51)) -> 1 | E51: =COUNTIF($A$2:A51,A51) -> 1
A52: 1998 | B52: President Jacques Chirac | C52: France | D52: =IF(C52="","",COUNTIF($C$2:C52,C52)) -> 3 | E52: =COUNTIF($A$2:A52,A52) -> 1
A53: 1999 | B53: King Birendra Bir Bikram Shah Dev | C53: Nepal | D53: =IF(C53="","",COUNTIF($C$2:C53,C53)) -> 2 | E53: =COUNTIF($A$2:A53,A53) -> 1
A54: 2000 | B54: President Olusegun Obasanjo | C54: Nigeria | D54: =IF(C54="","",COUNTIF($C$2:C54,C54)) -> 2 | E54: =COUNTIF($A$2:A54,A54) -> 1
A55: 2001 | B55: President Abdelaziz Bouteflika | C55: Algeria | D55: =IF(C55="","",COUNTIF($C$2:C55,C55)) -> 1 | E55: =COUNTIF($A$2:A55,A55) -> 1
A56: 2002 | B56: President Cassam Uteem | C56: Mauritius | D56: =IF(C56="","",COUNTIF($C$2:C56,C56)) -> 3 | E56: =COUNTIF($A$2:A56,A56) -> 1
A57: 2003 | B57: President Mohammed Khatami | C57: Iran | D57: =IF(C57="","",COUNTIF($C$2:C57,C57)) -> 1 | E57: =COUNTIF($A$2:A57,A57) -> 1
A58: 2004 | B58: President Luiz Inacio Lula da Silva | C58: Brazil | D58: =IF(C58="","",COUNTIF($C$2:C58,C58)) -> 2 | E58: =COUNTIF($A$2:A58,A58) -> 1
A59: 2005 | B59: King Jigme Singye Wangchuck | C59: Bhutan | D59: =IF(C59="","",COUNTIF($C$2:C59,C59)) -> 3 | E59: =COUNTIF($A$2:A59,A59) -> 1
A60: 2006 | B60: King Abdullah bin Abdulaziz al-Saud | C60: Saudi Arabia | D60: =IF(C60="","",COUNTIF($C$2:C60,C60)) -> 1 | E60: =COUNTIF($A$2:A60,A60) -> 1
A61: 2007 | B61: President Vladimir Putin | C61: Russia | D61: =IF(C61="","",COUNTIF($C$2:C61,C61)) -> 1 | E61: =COUNTIF($A$2:A61,A61) -> 1
A62: 2008 | B62: President Nicolas Sarkozy | C62: France | D62: =IF(C62="","",COUNTIF($C$2:C62,C62)) -> 4 | E62: =COUNTIF($A$2:A62,A62) -> 1
A63: 2009 | B63: President Nursultan Nazarbayev | C63: Kazakhstan | D63: =IF(C63="","",COUNTIF($C$2:C63,C63)) -> 1 | E63: =COUNTIF($A$2:A63,A63) -> 1
A64: 2010 | B64: President Lee Myung Bak | C64: South Korea | D64: =IF(C64="","",COUNTIF($C$2:C64,C64)) -> 1 | E64: =COUNTIF($A$2:A64,A64) -> 1
A65: 2011 | B65: President Susilo Bambang Yudhoyono | C65: Indonesia | D65: =IF(C65="","",COUNTIF($C$2:C65,C65)) -> 2 | E65: =COUNTIF($A$2:A65,A65) -> 1
A66: 2012 | B66: Prime Minister Yingluck Shinawatra | C66: Thailand | D66: =IF(C66="","",COUNTIF($C$2:C66,C66)) -> 1 | E66: =COUNTIF($A$2:A66,A66) -> 1
A67: 2013 | B67: King Jigme Khesar Namgyel Wangchuck | C67: Bhutan | D67: =IF(C67="","",COUNTIF($C$2:C67,C67)) -> 4 | E67: =COUNTIF($A$2:A67,A67) -> 1
A68: 2014 | B68: Prime Minister Shinzo Abe | C68: Japan | D68: =IF(C68="","",COUNTIF($C$2:C68,C68)) -> 1 | E68: =COUNTIF($A$2:A68,A68) -> 1
A69: 2015 | B69: President Barack Obama | C69: United States | D69: =IF(C69="","",COUNTIF($C$2:C69,C69)) -> 1 | E69: =COUNTIF($A$2:A69,A69) -> 1
A70: 2016 | B70: President François Hollande | C70: France | D70: =IF(C70="","",COUNTIF($C$2:C70,C70)) -> 5 | E70: =COUNTIF($A$2:A70,A70) -> 1

Sheet DB
C1: INDIAN REPUBLIC DAY : VISUALIZATION
C2: =IF(C4<=0,"-",INDEX(GDP!$A$2:$A$70,C4)) -> 1957 | D2: =IF(D4<=0,"-",INDEX(GDP!$A$2:$A$70,D4)) -> 1958 | E2: =IF(E4<=0,"-",INDEX(GDP!$A$2:$A$70,E4)) -> 1959 | F2: =IF(F4<=0,"-",INDEX(GDP!$A$2:$A$70,F4)) -> 1960 | G2: =IF(G4<=0,"-",INDEX(GDP!$A$2:$A$70,G4)) -> 1961 | L2: 1000000000
C3: =C2 -> 1957 | D3: 1958 | E3: 1959 | F3: 1960 | G3: 1961
C4: =D4-1 -> 8 | D4: =E4-1 -> 9 | E4: 10 | F4: =E4+1 -> 11 | G4: =F4+1 -> 12
E10: Prime Minister
E11: =Prime_Minister -> Jawaharlal Nehru
D13: Guest from | E13: =Guest.country ->  | F13: =guest.country2 -> -
E14: =Guest1 -> - | F14: =guest2 -> -
E15: =Invited -> - | F15: =Invited2 -> -
C17: =UPPER("India's GDP performance since ")&year -> INDIA'S GDP PERFORMANCE SINCE 1959 | G17: =IFERROR(IF(current.gdp/last.gdp-1>0,TEXT(current.gdp/last.gdp-1,"0.0%")&" Growth over last year",TEXT(current.gdp/last.gdp-1,"(0.0)%")&" Fall over last year"),"-") -> 5.0% Growth over last year
G25: Figures in Crs
E46: 7

Sheet Links
A1: https://en.wikipedia.org/wiki/Economic_history_of_India
A2: https://en.wikipedia.org/wiki/Republic_Day_(India)

Sheet PM
A1: Year | B1: Name | C1: Pic
A2: 1950 | B2: Jawaharlal Nehru | I2: 1950 | J2: =INDEX($C$2:$C$68,MATCH(year,$A$2:$A$68,0)) -> 0
A3: =A2+1 -> 1951 | B3: Jawaharlal Nehru
A4: =A3+1 -> 1952 | B4: Jawaharlal Nehru
A5: 1953 | B5: Jawaharlal Nehru
A6: 1954 | B6: Jawaharlal Nehru
A7: 1955 | B7: Jawaharlal Nehru
A8: 1956 | B8: Jawaharlal Nehru
A9: 1957 | B9: Jawaharlal Nehru
A10: 1958 | B10: Jawaharlal Nehru
A11: 1959 | B11: Jawaharlal Nehru
A12: 1960 | B12: Jawaharlal Nehru
A13: 1961 | B13: Jawaharlal Nehru
A14: 1962 | B14: Jawaharlal Nehru
A15: 1963 | B15: Jawaharlal Nehru
A16: 1964 | B16: Jawaharlal Nehru
A17: 1965 | B17: Lal Baharur Shastri
A18: 1966 | B18: Indira Gandhi
A19: 1967 | B19: Indira Gandhi
A20: 1968 | B20: Indira Gandhi
A21: 1969 | B21: Indira Gandhi
A22: 1970 | B22: Indira Gandhi
A23: 1971 | B23: Indira Gandhi
A24: 1972 | B24: Indira Gandhi
A25: 1973 | B25: Indira Gandhi
A26: 1974 | B26: Indira Gandhi
A27: 1975 | B27: Indira Gandhi
A28: 1976 | B28: Indira Gandhi
A29: 1977 | B29: Indira Gandhi
A30: 1978 | B30: Morarji Desai
A31: 1979 | B31: Morarji Desai
A32: 1980 | B32: Indira Gandhi
A33: 1981 | B33: Indira Gandhi
A34: 1982 | B34: Indira Gandhi
A35: 1983 | B35: Indira Gandhi
A36: 1984 | B36: Indira Gandhi
A37: 1985 | B37: Rajiv Gandhi
A38: 1986 | B38: Rajiv Gandhi
A39: 1987 | B39: Rajiv Gandhi
A40: 1988 | B40: Rajiv Gandhi
A41: 1989 | B41: Rajiv Gandhi
A42: 1990 | B42: VP Singh
A43: 1991 | B43: Chandra Shekhar
A44: 1992 | B44: P. V. Narasimha Rao
A45: 1993 | B45: P. V. Narasimha Rao
A46: 1994 | B46: P. V. Narasimha Rao
A47: 1995 | B47: P. V. Narasimha Rao
A48: 1996 | B48: P. V. Narasimha Rao
A49: 1997 | B49: H. D. Deve Gowda
A50: 1998 | B50: I. K. Gujral
A51: 1999 | B51: Atal Bihari Vajpayee
A52: 2000 | B52: Atal Bihari Vajpayee
A53: 2001 | B53: Atal Bihari Vajpayee
A54: 2002 | B54: Atal Bihari Vajpayee
A55: 2003 | B55: Atal Bihari Vajpayee
A56: 2004 | B56: Atal Bihari Vajpayee
A57: 2005 | B57: Manmohan Singh
A58: 2006 | B58: Manmohan Singh
A59: 2007 | B59: Manmohan Singh
A60: 2008 | B60: Manmohan Singh
A61: 2009 | B61: Manmohan Singh
A62: 2010 | B62: Manmohan Singh
A63: 2011 | B63: Manmohan Singh
A64: 2012 | B64: Manmohan Singh
A65: 2013 | B65: Manmohan Singh
A66: 2014 | B66: Manmohan Singh
A67: 2015 | B67: Narendra Modi
A68: =A67+1 -> 2016 | B68: Narendra Modi

Sheet GDP
A1: Year | B1: India's GDP at Current Prices(in crore rupees)
A2: 1950 | B2: =10036*(10^7) -> 100360000000 | C2: =B2/1000000000 -> 100.36
A3: 1951 | B3: =10596*(10^7) -> 105960000000 | C3: =B3/1000000000 -> 105.96
A4: 1952 | B4: =10449*(10^7) -> 104490000000 | C4: 104.49
A5: 1953 | B5: =11378*(10^7) -> 113780000000 | C5: 113.78
A6: 1954 | B6: =10689*(10^7) -> 106890000000 | C6: 106.89
A7: 1955 | B7: =10861*(10^7) -> 108610000000 | C7: 108.61
A8: 1956 | B8: =12965*(10^7) -> 129650000000 | C8: 129.65
A9: 1957 | B9: =13255*(10^7) -> 132550000000 | C9: 132.55
A10: 1958 | B10: =14827*(10^7) -> 148270000000 | C10: 148.27
A11: 1959 | B11: =15574*(10^7) -> 155740000000 | C11: 155.74
A12: 1960 | B12: =17049*(10^7) -> 170490000000 | C12: 170.49
A13: 1961 | B13: =17992*(10^7) -> 179920000000 | C13: 179.92
A14: 1962 | B14: =19238*(10^7) -> 192380000000 | C14: 192.38
A15: 1963 | B15: =21986*(10^7) -> 219860000000 | C15: 219.86
A16: 1964 | B16: =25686*(10^7) -> 256860000000 | C16: 256.86
A17: 1965 | B17: =26895*(10^7) -> 268950000000 | C17: 268.95
A18: 1966 | B18: =30613*(10^7) -> 306130000000 | C18: 306.13
A19: 1967 | B19: =35976*(10^7) -> 359760000000 | C19: 359.76
A20: 1968 | B20: =37938*(10^7) -> 379380000000 | C20: 379.38
A21: 1969 | B21: =41722*(10^7) -> 417220000000 | C21: 417.22
A22: 1970 | B22: =44382*(10^7) -> 443820000000 | C22: 443.82
A23: 1971 | B23: =47221*(10^7) -> 472210000000 | C23: 472.21
A24: 1972 | B24: =51943*(10^7) -> 519430000000 | C24: 519.43
A25: 1973 | B25: =63658*(10^7) -> 636580000000 | C25: 636.58
A26: 1974 | B26: =74930*(10^7) -> 749300000000 | C26: 749.3
A27: 1975 | B27: =79582*(10^7) -> 795820000000 | C27: 795.82
A28: 1976 | B28: =85545*(10^7) -> 855450000000 | C28: 855.45
A29: 1977 | B29: =97633*(10^7) -> 976330000000 | C29: 976.33
A30: 1978 | B30: =104930*(10^7) -> 1049300000000 | C30: 1049.3
A31: 1979 | B31: =114500*(10^7) -> 1145000000000 | C31: 1145
A32: 1980 | B32: =136838*(10^7) -> 1368380000000 | C32: 1368.38
A33: 1981 | B33: =160214*(10^7) -> 1602140000000 | C33: 1602.14
A34: 1982 | B34: =178985*(10^7) -> 1789850000000 | C34: 1789.85
A35: 1983 | B35: =209356*(10^7) -> 2093560000000 | C35: 2093.56
A36: 1984 | B36: =230526*(10^7) -> 2305260000000 | C36: 2305.26
A37: 1985 | B37: =262717*(10^7) -> 2627170000000 | C37: 2627.17
A38: 1986 | B38: =292924*(10^7) -> 2929240000000 | C38: 2929.24
A39: 1987 | B39: =332068*(10^7) -> 3320680000000 | C39: 3320.68
A40: 1988 | B40: =396295*(10^7) -> 3962950000000 | C40: 3962.95
A41: 1989 | B41: =456540*(10^7) -> 4565400000000 | C41: 4565.4
A42: 1990 | B42: =531814*(10^7) -> 5318140000000 | C42: 5318.14
A43: 1991 | B43: =613528*(10^7) -> 6135280000000 | C43: 6135.28
A44: 1992 | B44: =703723*(10^7) -> 7037230000000 | C44: 7037.23
A45: 1993 | B45: =805486*(10^7) -> 8054860000000 | C45: 8054.86
A46: 1994 | B46: =955386*(10^7) -> 9553860000000 | C46: 9553.86
A47: 1995 | B47: =1118586*(10^7) -> 11185860000000 | C47: 11185.86
A48: 1996 | B48: =1301788*(10^7) -> 13017880000000 | C48: 13017.88
A49: 1997 | B49: =1447613*(10^7) -> 14476130000000 | C49: 14476.13
A50: 1998 | B50: =1668739*(10^7) -> 16687390000000 | C50: 16687.39
A51: 1999 | B51: =1858205*(10^7) -> 18582050000000 | C51: 18582.05
A52: 2000 | B52: =2000743*(10^7) -> 20007430000000 | C52: 20007.43
A53: 2001 | B53: =2175260*(10^7) -> 21752600000000 | C53: 21752.6
A54: 2002 | B54: =2343864*(10^7) -> 23438640000000 | C54: 23438.64
A55: 2003 | B55: =2625819*(10^7) -> 26258190000000 | C55: 26258.19
A56: 2004 | B56: =2971464*(10^7) -> 29714640000000 | C56: 29714.64
A57: 2005 | B57: =3390503*(10^7) -> 33905030000000 | C57: 33905.03
A58: 2006 | B58: =3953276*(10^7) -> 39532760000000 | C58: 39532.76
A59: 2007 | B59: =4582086*(10^7) -> 45820860000000 | C59: 45820.86
A60: 2008 | B60: =5303567*(10^7) -> 53035670000000 | C60: 53035.67
A61: 2009 | B61: =6108903*(10^7) -> 61089030000000 | C61: 61089.03
A62: 2010 | B62: =7248860*(10^7) -> 72488600000000 | C62: 72488.6
A63: 2011 | B63: =8391691*(10^7) -> 83916910000000 | C63: 83916.91
A64: 2012 | B64: =9388876*(10^7) -> 93888760000000 | C64: 93888.76
A65: 2013 | B65: 104728070000000 | C65: 104728.07
A66: 2014 | B66: =106.44*10^12 -> 106440000000000 | C66: 106440
A67: 2015 | B67: =106.44*10^12 -> 106440000000000 | C67: 106440
A68: 2016 | B68: =106.44*10^12 -> 106440000000000 | C68: 106440
